[Event "Open Cappelle-la-Grande"]
[Date "2026.02.22"]
[White "Veleshnja, Zino"]
[Black "Velten, Paul"]
[WhiteElo "2189"]
[BlackElo "2522"]
[Round "3.3.14"]
[Result "1-0"]
[TimeControl "40/5400+30:1800+30"]

d4 {[%clk 1:30:54]} Nf6 {[%clk 1:30:36]} c4 {[%clk 1:31:16]} e6 {[%clk 1:29:45]}
Nc3 {[%clk 1:31:41]} Bb4 {[%clk 1:29:41]} e3 {[%clk 1:32:05]} O-O {[%clk
1:26:19]} Bd2 {[%clk 1:32:04]} d5 {[%clk 1:24:05]} Nf3 {[%clk 1:32:22]} a6
{[%clk 1:18:04]} a3 {[%clk 1:23:32]} Be7 {[%clk 1:17:31]} c5 {[%clk 1:21:08]}
Nbd7 {[%clk 1:11:55]} b4 {[%clk 1:16:57]} c6 {[%clk 1:11:50]} Bd3 {[%clk
1:15:39]} Qc7 {[%clk 1:11:53]} O-O {[%clk 1:07:11]} e5 {[%clk 1:11:28]} Bf5
{[%clk 1:06:38]} e4 {[%clk 1:09:08]} Ne1 {[%clk 1:05:54]} g6 {[%clk 1:09:01]}
Bh3 {[%clk 1:06:00]} h5 {[%clk 1:08:22]} f3 {[%clk 1:00:18]} exf3 {[%clk
1:06:54]} Qxf3 {[%clk 0:56:55]} Ng4 {[%clk 1:06:15]} Bxg4 {[%clk 0:52:08]} hxg4
{[%clk 1:06:39]} Qe2 {[%clk 0:51:01]} f5 {[%clk 1:04:34]} Nd3 {[%clk 0:49:59]}
Rf7 {[%clk 1:03:56]} Be1 {[%clk 0:49:13]} Bg5 {[%clk 1:03:07]} Bg3 {[%clk
0:48:36]} Qd8 {[%clk 1:03:08]} Nf4 {[%clk 0:45:02]} Nf8 {[%clk 0:54:36]} Qf2
{[%clk 0:44:46]} Be6 {[%clk 0:54:19]} a4 {[%clk 0:42:13]} Bh6 {[%clk 0:51:15]}
Nd3 {[%clk 0:37:42]} Bd7 {[%clk 0:46:28]} Ne5 {[%clk 0:35:06]} Rh7 {[%clk
0:44:02]} Ne2 {[%clk 0:30:51]} Be8 {[%clk 0:43:31]} Nf4 {[%clk 0:30:05]} Rc8
{[%clk 0:38:12]} Qa2 {[%clk 0:27:11]} Kh8 {[%clk 0:36:30]} b5 {[%clk 0:22:36]}
Bxf4 {[%clk 0:33:42]} Bxf4 {[%clk 0:22:59]} cxb5 {[%clk 0:33:27]} Nd3 {[%clk
0:20:31]} bxa4 {[%clk 0:30:46]} Bd6 {[%clk 0:18:17]} Bc6 {[%clk 0:30:32]} e4
{[%clk 0:17:13]} Qg5 {[%clk 0:24:12]} Bf4 {[%clk 0:14:37]} Qd8 {[%clk 0:21:34]}
exf5 {[%clk 0:12:55]} Bb5 {[%clk 0:21:18]} fxg6 {[%clk 0:11:18]} Nxg6 {[%clk
0:21:11]} Ne5 {[%clk 0:11:19]} Nh4 {[%clk 0:16:32]} Nxg4 {[%clk 0:09:13]} Ng6
{[%clk 0:14:53]} Ne5 {[%clk 0:07:04]} Nh4 {[%clk 0:11:48]} Rf2 {[%clk 0:01:52]}
Nf5 {[%clk 0:10:16]} Ng6+ {[%clk 0:30:14]} Kg8 {[%clk 0:39:24]} Be5 {[%clk
0:28:26]} Rc6 {[%clk 0:37:09]} Rxf5 {[%clk 0:25:47]} Rxg6 {[%clk 0:36:59]} Bd6
{[%clk 0:22:58]} Bc4 {[%clk 0:36:32]} Qf2 {[%clk 0:20:50]} Rxd6 {[%clk 0:36:36]}
cxd6 {[%clk 0:19:52]} Qxd6 {[%clk 0:37:01]} h3 {[%clk 0:19:26]} Rg7 {[%clk
0:34:34]} Re1 {[%clk 0:18:49]} Bb5 {[%clk 0:34:53]} Qf3 {[%clk 0:17:32]} a3
{[%clk 0:33:49]} Rxd5 {[%clk 0:17:17]} Qg6 {[%clk 0:34:06]} Rd8+ {[%clk
0:14:08]} Kh7 {[%clk 0:34:31]} Re5 {[%clk 0:11:49]} Rf7 {[%clk 0:32:53]} Qxa3
{[%clk 0:12:00]} Qf6 {[%clk 0:31:05]} Rdd5 {[%clk 0:12:07]} Rg7 {[%clk 0:26:36]}
Rf5 {[%clk 0:11:07]} Qe6 {[%clk 0:25:14]} Rh5+ {[%clk 0:11:32]} Kg8 {[%clk
0:25:31]} Rd8+ {[%clk 0:11:37]}

[Variant "Standard"]
[Site "Europe Echecs"]

[Event "Open Cappelle-la-Grande"]
[Date "2026.02.22"]
[White "Le Geay, Joachim"]
[Black "Degraeve, Jean-Marc"]
[WhiteElo "2182"]
[BlackElo "2503"]
[Round "3.3.15"]
[Result "1-0"]
[TimeControl "40/5400+30:1800+30"]

e4 {[%clk 1:30:57]} d6 {[%clk 1:27:45]} Nf3 {[%clk 1:30:38]} Nf6 {[%clk
1:27:56]} Nc3 {[%clk 1:31:01]} e5 {[%clk 1:28:01]} d4 {[%clk 1:31:19]} Nbd7
{[%clk 1:28:19]} Be2 {[%clk 1:30:37]} Be7 {[%clk 1:28:15]} O-O {[%clk 1:30:12]}
c6 {[%clk 1:27:43]} a4 {[%clk 1:30:30]} O-O {[%clk 1:27:04]} h3 {[%clk 1:29:16]}
Re8 {[%clk 1:27:11]} Be3 {[%clk 1:26:24]} Bf8 {[%clk 1:27:02]} d5 {[%clk
1:24:14]} cxd5 {[%clk 1:21:45]} exd5 {[%clk 1:24:30]} Nc5 {[%clk 1:20:18]} Nd2
{[%clk 1:18:57]} Nfd7 {[%clk 1:20:17]} Nc4 {[%clk 1:07:07]} Nb6 {[%clk 1:12:01]}
Nxb6 {[%clk 0:54:55]} Qxb6 {[%clk 1:11:28]} Bb5 {[%clk 0:54:38]} Qd8 {[%clk
1:05:06]} Bxe8 {[%clk 0:55:03]} Qxe8 {[%clk 1:05:32]} Nb5 {[%clk 0:51:27]} Qd8
{[%clk 1:01:25]} b4 {[%clk 0:50:45]} Ne4 {[%clk 0:59:57]} Nxa7 {[%clk 0:48:02]}
Bd7 {[%clk 1:00:21]} a5 {[%clk 0:45:38]} f5 {[%clk 0:59:17]} Qd3 {[%clk
0:42:58]} Qh4 {[%clk 0:52:03]} b5 {[%clk 0:40:44]} Nf6 {[%clk 0:49:22]} f4
{[%clk 0:37:45]} Nh5 {[%clk 0:47:55]} a6 {[%clk 0:35:13]} Nxf4 {[%clk 0:40:01]}
Bxf4 {[%clk 0:22:50]} Rxa7 {[%clk 0:40:26]} Be3 {[%clk 0:22:34]} Ra8 {[%clk
0:40:52]} axb7 {[%clk 0:20:25]} Rb8 {[%clk 0:41:17]} Ra7 {[%clk 0:17:28]} g6
{[%clk 0:30:22]} Qc3 {[%clk 0:15:32]} Qd8 {[%clk 0:23:00]} b6 {[%clk 0:15:02]}
f4 {[%clk 0:23:27]} Qc7 {[%clk 0:14:56]}

[Variant "Standard"]
[Site "Europe Echecs"]

[Event "Open Cappelle-la-Grande"]
[Date "2026.02.22"]
[White "Hirzel, Cedric"]
[Black "Bournel, Antoine"]
[WhiteElo "2079"]
[BlackElo "2434"]
[Round "3.3.16"]
[Result "0-1"]
[TimeControl "40/5400+30:1800+30"]

d4 {[%clk 1:30:44]} Nf6 {[%clk 1:30:57]} c4 {[%clk 1:30:57]} e6 {[%clk 1:31:25]}
Nf3 {[%clk 1:31:16]} d5 {[%clk 1:31:50]} g3 {[%clk 1:31:06]} Bb4+ {[%clk
1:32:13]} Bd2 {[%clk 1:31:28]} Be7 {[%clk 1:32:37]} Bg2 {[%clk 1:31:53]} O-O
{[%clk 1:33:00]} Qc2 {[%clk 1:32:01]} c6 {[%clk 1:30:56]} O-O {[%clk 1:32:22]}
Nbd7 {[%clk 1:31:22]} Rd1 {[%clk 1:32:31]} a5 {[%clk 1:31:41]} Bf4 {[%clk
1:32:22]} a4 {[%clk 1:31:47]} Ne5 {[%clk 1:31:34]} Qa5 {[%clk 1:19:49]} Nd2
{[%clk 1:24:00]} Nxe5 {[%clk 1:18:40]} Bxe5 {[%clk 1:18:10]} Ng4 {[%clk
1:18:12]} Nf3 {[%clk 1:18:05]} Nxe5 {[%clk 1:11:08]} Nxe5 {[%clk 1:18:01]} g6
{[%clk 1:02:49]} e3 {[%clk 1:11:02]} Kg7 {[%clk 0:53:07]} h4 {[%clk 0:56:16]}
Bd6 {[%clk 0:51:44]} Nd3 {[%clk 0:49:00]} Rd8 {[%clk 0:47:25]} c5 {[%clk
0:44:48]} Be7 {[%clk 0:45:54]} b4 {[%clk 0:42:36]} axb3 {[%clk 0:42:10]} Qxb3
{[%clk 0:39:46]} Re8 {[%clk 0:36:29]} Rdc1 {[%clk 0:32:44]} Bd8 {[%clk 0:35:29]}
Rc2 {[%clk 0:31:22]} Bc7 {[%clk 0:34:57]} f4 {[%clk 0:30:48]} f6 {[%clk
0:33:44]} Rf1 {[%clk 0:26:08]} Ra7 {[%clk 0:32:07]} g4 {[%clk 0:21:28]} e5
{[%clk 0:22:46]} fxe5 {[%clk 0:09:08]} fxe5 {[%clk 0:21:52]} dxe5 {[%clk
0:07:37]} Bxg4 {[%clk 0:14:47]} e4 {[%clk 0:08:02]} Qa4 {[%clk 0:11:04]} exd5
{[%clk 0:07:21]} cxd5 {[%clk 0:10:15]} Qxa4 {[%clk 0:03:24]} Rxa4 {[%clk
0:10:42]} Rb2 {[%clk 0:02:55]} Re7 {[%clk 0:09:43]} Bxd5 {[%clk 0:02:25]} Bf5
{[%clk 0:05:37]} Nf2 {[%clk 0:02:40]} Bxe5 {[%clk 0:05:28]} Rxb7 {[%clk
0:02:13]} Rxb7 {[%clk 0:05:52]} Bxb7 {[%clk 0:02:40]} Rxa2 {[%clk 0:05:21]} Bf3
{[%clk 0:02:12]} h5 {[%clk 0:04:32]} c6 {[%clk 0:01:57]} Bd4 {[%clk 0:03:16]} c7
{[%clk 0:00:45]} Rc2 {[%clk 0:03:28]} Bd1 {[%clk 0:00:50]} Rxc7 {[%clk 0:03:27]}
Kg2 {[%clk 0:01:11]} Rc1 {[%clk 0:29:37]} Bf3 {[%clk 0:22:52]} Rxf1 {[%clk
0:27:42]} Kxf1 {[%clk 0:23:21]} Bf6 {[%clk 0:28:04]} Be4 {[%clk 0:23:48]} Bxe4
{[%clk 0:19:58]} Nxe4 {[%clk 0:24:06]} Bxh4 {[%clk 0:20:25]} Kg2 {[%clk
0:22:23]} Kf7 {[%clk 0:18:53]} Kf3 {[%clk 0:13:47]} Ke6 {[%clk 0:18:30]} Kf4
{[%clk 0:13:10]} Be7 {[%clk 0:18:35]} Nf2 {[%clk 0:09:43]} Kd5 {[%clk 0:17:53]}
Ne4 {[%clk 0:07:42]} Bd8 {[%clk 0:17:13]} Nf2 {[%clk 0:07:16]} Bf6 {[%clk
0:15:58]} Ne4 {[%clk 0:06:57]} Bb2 {[%clk 0:14:32]} Nf2 {[%clk 0:06:57]} Bc1+
{[%clk 0:14:39]} Kf3 {[%clk 0:05:17]} g5 {[%clk 0:13:04]} Nd3 {[%clk 0:03:06]}
Bd2 {[%clk 0:13:08]} Ke2 {[%clk 0:03:09]} Bf4 {[%clk 0:12:33]} Kf3 {[%clk
0:03:33]} Bd6 {[%clk 0:12:23]} Nf2 {[%clk 0:03:26]} Ke5 {[%clk 0:11:25]} Nd3+
{[%clk 0:03:17]} Kf5 {[%clk 0:11:48]} Nf2 {[%clk 0:02:49]} Bc5 {[%clk 0:11:20]}
Nh3 {[%clk 0:02:43]} g4+ {[%clk 0:11:01]} Kg3 {[%clk 0:03:08]} Bd4 {[%clk
0:09:44]} Kg2 {[%clk 0:02:58]} Be3 {[%clk 0:09:54]} Kg3 {[%clk 0:02:43]} Ke4
{[%clk 0:10:09]} Kg2 {[%clk 0:02:18]} h4 {[%clk 0:09:59]} Kh1 {[%clk 0:02:17]}
Kf3 {[%clk 0:08:04]} Kh2 {[%clk 0:02:42]} g3+ {[%clk 0:05:44]} Kh1 {[%clk
0:03:07]} Kg4 {[%clk 0:05:40]} Kg2 {[%clk 0:03:20]} Bd4 {[%clk 0:05:53]} Kh1
{[%clk 0:03:43]} Ba7 {[%clk 0:06:09]} Kg2 {[%clk 0:04:08]} Be3 {[%clk 0:06:32]}
Kh1 {[%clk 0:04:30]} Kf3 {[%clk 0:06:51]}

[Variant "Standard"]
[Site "Europe Echecs"]

[Event "Open Cappelle-la-Grande"]
[Date "2026.02.23"]
[White "Levin, Guy"]
[Black "Razafindratsima, Timothe"]
[WhiteElo "2440"]
[BlackElo "2504"]
[Round "4.4.1"]
[Result "0-1"]
[TimeControl "40/5400+30:1800+30"]

d4 {[%clk 1:30:54]} f5 {[%clk 1:30:53]} Nc3 {[%clk 1:31:09]} Nf6 {[%clk
1:31:17]} Bg5 {[%clk 1:31:32]} d5 {[%clk 1:31:25]} e3 {[%clk 1:31:54]} e6 {[%clk
1:31:49]} Nf3 {[%clk 1:31:33]} Be7 {[%clk 1:32:10]} Bd3 {[%clk 1:31:45]} Ne4
{[%clk 1:32:24]} Bxe7 {[%clk 1:32:10]} Qxe7 {[%clk 1:32:50]} O-O {[%clk
1:32:28]} O-O {[%clk 1:33:14]} Ne2 {[%clk 1:30:24]} c5 {[%clk 1:33:07]} c4
{[%clk 1:29:32]} dxc4 {[%clk 1:33:31]} Bxc4 {[%clk 1:17:26]} Nd6 {[%clk
1:33:53]} b3 {[%clk 1:14:57]} b6 {[%clk 1:33:12]} Rc1 {[%clk 1:10:34]} Nxc4
{[%clk 1:23:02]} bxc4 {[%clk 1:10:39]} Bb7 {[%clk 1:23:14]} Nf4 {[%clk 1:04:22]}
g5 {[%clk 1:21:09]} Nd3 {[%clk 1:04:41]} Nd7 {[%clk 1:18:55]} Qe2 {[%clk
1:02:17]} Rad8 {[%clk 1:00:09]} Rfd1 {[%clk 1:02:31]} Qg7 {[%clk 1:00:19]} Nfe5
{[%clk 0:59:20]} Nxe5 {[%clk 0:54:12]} Nxe5 {[%clk 0:59:42]} g4 {[%clk 0:54:38]}
Qb2 {[%clk 0:49:25]} Be4 {[%clk 0:50:52]} Qc3 {[%clk 0:34:21]} h5 {[%clk
0:47:13]} dxc5 {[%clk 0:33:10]} bxc5 {[%clk 0:44:23]} Rxd8 {[%clk 0:31:45]} Rxd8
{[%clk 0:44:51]} Qa5 {[%clk 0:32:06]} Qe7 {[%clk 0:45:13]} f3 {[%clk 0:30:19]}
gxf3 {[%clk 0:36:00]} gxf3 {[%clk 0:30:43]} Kh7 {[%clk 0:36:27]} Kh1 {[%clk
0:21:39]} Rg8 {[%clk 0:36:25]} Rg1 {[%clk 0:20:18]} Rxg1+ {[%clk 0:34:46]} Kxg1
{[%clk 0:20:15]} Qg7+ {[%clk 0:35:10]} Kf1 {[%clk 0:20:18]} Qxe5 {[%clk
0:35:35]} Qxa7+ {[%clk 0:20:35]} Kg6 {[%clk 0:35:52]} fxe4 {[%clk 0:20:54]} Qxe4
{[%clk 0:35:30]} Qxc5 {[%clk 0:18:02]} h4 {[%clk 0:27:01]} h3 {[%clk 0:13:57]}
Qf3+ {[%clk 0:22:27]} Ke1 {[%clk 0:14:22]} Qg3+ {[%clk 0:22:54]} Kd2 {[%clk
0:12:17]} Qxh3 {[%clk 0:23:16]} Qe5 {[%clk 0:12:41]} Qg2+ {[%clk 0:14:57]} Ke1
{[%clk 0:13:00]} Qg1+ {[%clk 0:15:24]} Kd2 {[%clk 0:13:14]} Qf2+ {[%clk
0:15:41]} Kc3 {[%clk 0:13:16]} h3 {[%clk 0:11:45]} Qxe6+ {[%clk 0:13:31]} Kg5
{[%clk 0:11:03]} Qg8+ {[%clk 0:03:15]} Kh4 {[%clk 0:11:21]} Qh7+ {[%clk
0:01:35]} Kg3 {[%clk 0:11:41]} Qg6+ {[%clk 0:01:59]} Kh2 {[%clk 0:08:53]} c5
{[%clk 0:26:25]} Qg3 {[%clk 0:30:11]} Qxf5 {[%clk 0:22:39]} Kg1 {[%clk 0:30:24]}
Qb1+ {[%clk 0:06:32]} Kf2 {[%clk 0:30:50]} c6 {[%clk 0:04:30]} h2 {[%clk
0:30:39]} Qh7 {[%clk 0:03:24]} Qxe3+ {[%clk 0:28:21]} Kb4 {[%clk 0:01:03]} Qe1+
{[%clk 0:26:06]} Kc5 {[%clk 0:00:58]} h1=Q {[%clk 0:24:11]} Qxh1 {[%clk
0:00:40]} Qxh1 {[%clk 0:24:36]} c7 {[%clk 0:00:45]} Qb7 {[%clk 0:24:15]} Kd6
{[%clk 0:01:14]} Qc8 {[%clk 0:24:10]} a4 {[%clk 0:01:40]} Ke3 {[%clk 0:21:40]}
a5 {[%clk 0:02:09]} Kd4 {[%clk 0:21:48]} a6 {[%clk 0:02:34]} Qxa6+ {[%clk
0:21:22]} Kd7 {[%clk 0:03:03]} Qb7 {[%clk 0:21:43]} Kd8 {[%clk 0:03:28]} Qd5+
{[%clk 0:22:10]} Kc8 {[%clk 0:03:50]} Kc5 {[%clk 0:22:22]} Kb8 {[%clk 0:04:18]}
Qd6 {[%clk 0:22:19]} Ka8 {[%clk 0:04:41]} Qa6+ {[%clk 0:22:39]} Kb8 {[%clk
0:05:10]} Kb6 {[%clk 0:23:03]} c8=Q {[%clk 0:05:33]} Qa7# {[%clk 0:23:30]}

[Variant "Standard"]
[Site "Europe Echecs"]

[Event "Open Cappelle-la-Grande"]
[Date "2026.02.23"]
[White "Poetsch, Hagen"]
[Black "Rohith Krishna S"]
[WhiteElo "2433"]
[BlackElo "2484"]
[Round "4.4.2"]
[Result "1/2-1/2"]
[TimeControl "40/5400+30:1800+30"]

e4 {[%clk 1:30:10]} e5 {[%clk 1:30:54]} Nf3 {[%clk 1:30:36]} Nc6 {[%clk
1:31:19]} Bc4 {[%clk 1:31:01]} Bc5 {[%clk 1:31:44]} c3 {[%clk 1:31:16]} Nf6
{[%clk 1:32:08]} d4 {[%clk 1:31:41]} exd4 {[%clk 1:32:33]} cxd4 {[%clk 1:31:50]}
Bb4+ {[%clk 1:32:57]} Nc3 {[%clk 1:32:12]} Nxe4 {[%clk 1:31:24]} O-O {[%clk
1:32:35]} Bxc3 {[%clk 1:28:00]} d5 {[%clk 1:32:57]} Bf6 {[%clk 1:24:10]} Re1
{[%clk 1:33:13]} O-O {[%clk 1:24:28]} Rxe4 {[%clk 1:31:19]} Ne7 {[%clk 1:24:12]}
Bg5 {[%clk 1:30:57]} Ng6 {[%clk 1:13:35]} Bxf6 {[%clk 1:30:21]} Qxf6 {[%clk
1:14:01]} Qd4 {[%clk 1:21:23]} Qxd4 {[%clk 0:51:14]} Nxd4 {[%clk 1:20:53]} d6
{[%clk 0:51:39]} Rc1 {[%clk 1:19:39]} Bd7 {[%clk 0:49:57]} Bb5 {[%clk 1:19:41]}
Bxb5 {[%clk 0:43:34]} Nxb5 {[%clk 1:20:04]} Rae8 {[%clk 0:43:26]} Rxe8 {[%clk
1:06:06]} Rxe8 {[%clk 0:43:51]} Kf1 {[%clk 1:05:38]} a6 {[%clk 0:39:34]} Nxc7
{[%clk 1:05:50]} Re5 {[%clk 0:32:42]} Na8 {[%clk 1:00:28]} Ne7 {[%clk 0:29:21]}
Nb6 {[%clk 0:58:33]} h5 {[%clk 0:26:34]} Rc7 {[%clk 0:56:34]} Nxd5 {[%clk
0:26:56]} Nxd5 {[%clk 0:56:57]} Rxd5 {[%clk 0:27:21]} Rxb7 {[%clk 0:57:06]} Rd2
{[%clk 0:27:44]} Rb6 {[%clk 0:51:36]}

[Variant "Standard"]
[Site "Europe Echecs"]

[Event "Open Cappelle-la-Grande"]
[Date "2026.02.23"]
[White "Eugene, Floryan"]
[Black "Zamengo, Fulvio"]
[WhiteElo "2478"]
[BlackElo "2375"]
[Round "4.4.3"]
[Result "1-0"]
[TimeControl "40/5400+30:1800+30"]

e4 {[%clk 1:30:52]} e6 {[%clk 1:30:32]} d4 {[%clk 1:31:16]} d5 {[%clk 1:30:55]}
Nd2 {[%clk 1:31:40]} c5 {[%clk 1:30:48]} Ngf3 {[%clk 1:31:35]} cxd4 {[%clk
1:30:23]} exd5 {[%clk 1:31:57]} Qxd5 {[%clk 1:30:44]} Bc4 {[%clk 1:32:20]} Qd7
{[%clk 1:30:50]} O-O {[%clk 1:31:52]} a6 {[%clk 1:30:13]} Nb3 {[%clk 1:32:08]}
Nc6 {[%clk 1:30:36]} Nbxd4 {[%clk 1:32:05]} Nxd4 {[%clk 1:30:57]} Qxd4 {[%clk
1:32:25]} Qxd4 {[%clk 1:29:57]} Nxd4 {[%clk 1:32:51]} Bd7 {[%clk 1:30:20]} Be2
{[%clk 1:32:42]} Bc5 {[%clk 1:28:19]} Rd1 {[%clk 1:29:13]} Ne7 {[%clk 0:59:49]}
b4 {[%clk 1:20:08]} Bb6 {[%clk 0:56:28]} Bb2 {[%clk 1:09:25]} Nd5 {[%clk
0:30:05]} Nf5 {[%clk 0:58:37]} exf5 {[%clk 0:21:53]} Rxd5 {[%clk 0:56:00]} f6
{[%clk 0:19:47]} Bh5+ {[%clk 0:45:54]} Ke7 {[%clk 0:15:29]} Re1+ {[%clk
0:43:56]} Be6 {[%clk 0:15:43]} g4 {[%clk 0:36:21]} g6 {[%clk 0:14:59]} gxf5
{[%clk 0:34:45]} gxf5 {[%clk 0:15:22]} Ba3 {[%clk 0:34:46]} Rhg8+ {[%clk
0:14:34]} Kf1 {[%clk 0:34:31]} Rg6 {[%clk 0:14:55]} b5+ {[%clk 0:33:45]} Kf7
{[%clk 0:15:20]} Bxg6+ {[%clk 0:34:03]} hxg6 {[%clk 0:15:44]} Rxe6 {[%clk
0:34:29]}

[Variant "Standard"]
[Site "Europe Echecs"]

[Event "Open Cappelle-la-Grande"]
[Date "2026.02.23"]
[White "Flom, Gabriel"]
[Black "Lamaze, Simon"]
[WhiteElo "2423"]
[BlackElo "2450"]
[Round "4.4.4"]
[Result "1/2-1/2"]
[TimeControl "40/5400+30:1800+30"]

d4 {[%clk 1:30:57]} Nf6 {[%clk 1:30:55]} c4 {[%clk 1:31:22]} g6 {[%clk 1:31:21]}
Nc3 {[%clk 1:31:48]} Bg7 {[%clk 1:31:47]} e4 {[%clk 1:32:08]} d6 {[%clk
1:32:13]} Nf3 {[%clk 1:32:26]} O-O {[%clk 1:32:35]} Be2 {[%clk 1:32:44]} e5
{[%clk 1:32:58]} O-O {[%clk 1:32:23]} Nc6 {[%clk 1:33:18]} d5 {[%clk 1:31:42]}
Ne7 {[%clk 1:33:40]} Ne1 {[%clk 1:31:42]} Nd7 {[%clk 1:33:38]} Be3 {[%clk
1:32:02]} f5 {[%clk 1:34:03]} f3 {[%clk 1:32:29]} f4 {[%clk 1:34:19]} Bf2 {[%clk
1:32:52]} g5 {[%clk 1:34:44]} Rc1 {[%clk 1:32:54]} Ng6 {[%clk 1:34:38]} c5
{[%clk 1:32:53]} Nxc5 {[%clk 1:34:32]} b4 {[%clk 1:33:18]} Na6 {[%clk 1:34:39]}
Nb5 {[%clk 1:33:04]} b6 {[%clk 1:34:57]} Nd3 {[%clk 1:27:23]} Rf7 {[%clk
1:31:06]} Rc3 {[%clk 1:19:03]} h5 {[%clk 1:28:04]} h3 {[%clk 1:19:10]} Bd7
{[%clk 1:15:42]} a4 {[%clk 1:18:12]} Bf6 {[%clk 1:15:09]} Qb3 {[%clk 1:09:22]}
Qe8 {[%clk 1:11:08]} Rfc1 {[%clk 1:08:24]} Bd8 {[%clk 1:10:46]} Be1 {[%clk
1:05:28]} Rg7 {[%clk 1:03:46]} Nf2 {[%clk 1:01:50]} Nf8 {[%clk 1:02:41]}

[Variant "Standard"]
[Site "Europe Echecs"]

[Event "Open Cappelle-la-Grande"]
[Date "2026.02.23"]
[White "Pranesh M"]
[Black "Moksh Amit Doshi"]
[WhiteElo "2627"]
[BlackElo "2354"]
[Round "4.4.5"]
[Result "1-0"]
[TimeControl "40/5400+30:1800+30"]

e4 {[%clk 1:30:58]} e5 {[%clk 1:29:11]} Nf3 {[%clk 1:31:22]} Nc6 {[%clk
1:29:34]} Bc4 {[%clk 1:31:47]} Bc5 {[%clk 1:29:54]} c3 {[%clk 1:31:57]} Nf6
{[%clk 1:30:15]} d3 {[%clk 1:32:20]} d6 {[%clk 1:30:38]} Bg5 {[%clk 1:32:29]} h6
{[%clk 1:30:58]} Bh4 {[%clk 1:32:55]} a6 {[%clk 1:31:20]} Nbd2 {[%clk 1:33:11]}
Ba7 {[%clk 1:31:41]} a4 {[%clk 1:33:29]} Qe7 {[%clk 1:31:46]} O-O {[%clk
1:33:42]} Be6 {[%clk 1:26:30]} b4 {[%clk 1:33:28]} Bxc4 {[%clk 1:25:50]} Nxc4
{[%clk 1:33:45]} Qe6 {[%clk 1:26:12]} b5 {[%clk 1:31:57]} Ne7 {[%clk 1:25:14]}
Bxf6 {[%clk 1:30:14]} Qxf6 {[%clk 1:22:33]} d4 {[%clk 1:30:21]} Qe6 {[%clk
1:16:53]} Qb3 {[%clk 1:20:35]} exd4 {[%clk 1:07:59]} cxd4 {[%clk 1:18:33]} O-O
{[%clk 1:07:34]} Rfe1 {[%clk 1:12:19]} Ng6 {[%clk 1:03:06]} Rab1 {[%clk
0:56:25]} axb5 {[%clk 0:57:49]} Qxb5 {[%clk 0:54:57]} c6 {[%clk 0:53:47]} Qb3
{[%clk 0:55:03]} d5 {[%clk 0:41:36]} Ncd2 {[%clk 0:48:50]} Rab8 {[%clk 0:31:56]}
exd5 {[%clk 0:48:44]} Qxd5 {[%clk 0:32:18]} Qxd5 {[%clk 0:49:04]} cxd5 {[%clk
0:32:43]} Rb5 {[%clk 0:47:59]} Nf4 {[%clk 0:29:59]} Re7 {[%clk 0:44:50]} Rfe8
{[%clk 0:24:36]} Rxe8+ {[%clk 0:43:58]} Rxe8 {[%clk 0:25:01]} Rxb7 {[%clk
0:44:05]} Rc8 {[%clk 0:09:15]} Nb3 {[%clk 0:41:14]} Rc3 {[%clk 0:08:56]} h4
{[%clk 0:40:39]} Rd3 {[%clk 0:08:23]} a5 {[%clk 0:37:53]} Ne2+ {[%clk 0:06:30]}
Kf1 {[%clk 0:38:11]}

[Variant "Standard"]
[Site "Europe Echecs"]

[Event "Open Cappelle-la-Grande"]
[Date "2026.02.23"]
[White "Bujisho, Benjamin"]
[Black "Pranav Anand"]
[WhiteElo "2316"]
[BlackElo "2606"]
[Round "4.4.6"]
[Result "0-1"]
[TimeControl "40/5400+30:1800+30"]

e4 {[%clk 1:27:09]} c5 {[%clk 1:30:51]} Nc3 {[%clk 1:27:30]} d6 {[%clk 1:31:11]}
g3 {[%clk 1:26:50]} g6 {[%clk 1:30:51]} Bg2 {[%clk 1:27:14]} Bg7 {[%clk
1:31:16]} d3 {[%clk 1:27:38]} Nc6 {[%clk 1:31:33]} Be3 {[%clk 1:27:45]} Rb8
{[%clk 1:29:04]} Qd2 {[%clk 1:26:06]} b5 {[%clk 1:28:10]} Nge2 {[%clk 1:26:19]}
b4 {[%clk 1:24:50]} Nd1 {[%clk 1:26:35]} Bd7 {[%clk 1:21:36]} O-O {[%clk
1:23:11]} e6 {[%clk 1:13:54]} h3 {[%clk 1:15:16]} Nd4 {[%clk 1:10:49]} Nc1
{[%clk 1:13:13]} a5 {[%clk 1:04:34]} c3 {[%clk 1:12:48]} Nb5 {[%clk 1:04:35]}
Ne2 {[%clk 1:07:32]} h6 {[%clk 0:59:28]} d4 {[%clk 0:54:34]} cxd4 {[%clk
0:54:46]} cxd4 {[%clk 0:52:58]} Nf6 {[%clk 0:52:58]} d5 {[%clk 0:46:25]} exd5
{[%clk 0:47:08]} exd5 {[%clk 0:46:22]} h5 {[%clk 0:47:17]} Nd4 {[%clk 0:36:33]}
Nxd4 {[%clk 0:46:04]} Bxd4 {[%clk 0:35:59]} O-O {[%clk 0:46:28]} Qf4 {[%clk
0:30:16]} Re8 {[%clk 0:43:41]} Ne3 {[%clk 0:28:46]} Bb5 {[%clk 0:40:11]} Rfc1
{[%clk 0:26:54]} Nh7 {[%clk 0:37:17]} Bxg7 {[%clk 0:25:43]} Kxg7 {[%clk
0:37:46]} a4 {[%clk 0:22:09]} bxa3 {[%clk 0:37:29]} Rxa3 {[%clk 0:21:56]} Nf6
{[%clk 0:24:02]} Rca1 {[%clk 0:18:25]} a4 {[%clk 0:21:22]} b3 {[%clk 0:18:02]}
axb3 {[%clk 0:21:46]} Rxb3 {[%clk 0:18:23]} Bd7 {[%clk 0:18:24]} Rb4 {[%clk
0:14:12]} Qc7 {[%clk 0:16:42]} Ra6 {[%clk 0:05:20]} Re5 {[%clk 0:11:30]} Rc4
{[%clk 0:05:08]} Rb1+ {[%clk 0:11:32]} Kh2 {[%clk 0:05:25]} Qb8 {[%clk 0:11:53]}
Rc2 {[%clk 0:03:10]} Rb4 {[%clk 0:09:47]} Rc4 {[%clk 0:02:53]} Rb2 {[%clk
0:10:07]} Kg1 {[%clk 0:01:17]} Rb1+ {[%clk 0:01:13]} Kh2 {[%clk 0:01:43]} Rb6
{[%clk 0:01:37]} Rxb6 {[%clk 0:01:52]} Qxb6 {[%clk 0:02:05]} Rb4 {[%clk
0:01:43]} Qa7 {[%clk 0:02:15]} Qd4 {[%clk 0:01:10]} Qxd4 {[%clk 0:01:49]} Rxd4
{[%clk 0:28:41]} Ne8 {[%clk 0:31:41]} Rb4 {[%clk 0:27:53]} Kf6 {[%clk 0:31:02]}
Rb7 {[%clk 0:27:12]} Re7 {[%clk 0:31:13]} Rb6 {[%clk 0:27:11]} Bf5 {[%clk
0:28:24]} Bf1 {[%clk 0:19:03]} Be4 {[%clk 0:27:05]} Bb5 {[%clk 0:11:53]} Ke5
{[%clk 0:26:19]} Bc6 {[%clk 0:11:58]} Bd3 {[%clk 0:24:14]} Rb3 {[%clk 0:09:29]}
Kd4 {[%clk 0:23:34]} Rb4+ {[%clk 0:08:28]} Kc3 {[%clk 0:23:11]} Ra4 {[%clk
0:04:50]} Nf6 {[%clk 0:22:35]} Ra3+ {[%clk 0:05:01]} Kd4 {[%clk 0:21:07]} Ra4+
{[%clk 0:05:24]} Kc5 {[%clk 0:21:36]} Ra3 {[%clk 0:05:42]} Be2 {[%clk 0:20:20]}
Kg2 {[%clk 0:04:59]} Ne4 {[%clk 0:20:15]} f3 {[%clk 0:03:06]} Nd2 {[%clk
0:18:13]} Nc2 {[%clk 0:01:32]} Bf1+ {[%clk 0:15:29]} Kg1 {[%clk 0:02:00]} Bxh3
{[%clk 0:15:29]} Rc3+ {[%clk 0:01:55]} Kb6 {[%clk 0:15:44]} Kf2 {[%clk 0:02:11]}
Bf1 {[%clk 0:15:21]} Ne3 {[%clk 0:02:26]} Bb5 {[%clk 0:13:44]} Rc2 {[%clk
0:02:26]} Nb3 {[%clk 0:13:59]} Nc4+ {[%clk 0:00:33]} Bxc4 {[%clk 0:13:29]} Rxc4
{[%clk 0:01:03]} Nc5 {[%clk 0:13:40]} Rb4+ {[%clk 0:01:23]} Kc7 {[%clk 0:13:59]}
Rd4 {[%clk 0:01:01]} Kd8 {[%clk 0:13:33]} Rd1 {[%clk 0:01:30]} Ra7 {[%clk
0:13:28]} Rb1 {[%clk 0:01:53]} Nd3+ {[%clk 0:13:31]} Ke3 {[%clk 0:02:18]} Ne5
{[%clk 0:13:56]} Kd4 {[%clk 0:00:24]}

[Variant "Standard"]
[Site "Europe Echecs"]